bitfinex/quotes_BTCUSD_20241001
["timestamp","ask_amount","ask_price","bid_price","bid_amount"]
[1727744742952,0.001,63675.0,63673.0,0.1564578]
[1727744743177,0.02461123,63685.0,63673.0,0.1564578]
[1727744743178,0.02461123,63685.0,63674.0,0.00549186]
[1727744743395,0.23646438,63679.0,63675.0,0.1564578]
[1727744743613,0.002,63676.0,63674.0,0.00549186]
[1727744743827,0.157055,63672.0,63666.0,0.1]
[1727744744039,0.157055,63672.0,63668.0,0.157063]
[1727744744256,0.02461056,63671.0,63669.0,0.1564578]
[1727744746394,0.02461056,63671.0,63669.0,0.3135188]
[1727744746641,0.02461056,63671.0,63669.0,0.3175188]
[1727744746868,0.02461056,63671.0,63669.0,0.1604578]
[1727744747082,0.18166856,63671.0,63669.0,0.1604578]
[1727744747299,0.02461056,63671.0,63669.0,0.1604578]
[1727744748385,0.157059,63670.0,63669.0,0.1604578]
[1727744748798,0.02461056,63671.0,63669.0,0.1604578]
[1727744749195,0.157059,63670.0,63669.0,0.004]
[1727744749414,0.31412,63670.0,63664.0,0.1]
[1727744749564,0.157065,63668.0,63664.0,0.4135308]
[1727744749849,0.157065,63668.0,63665.0,0.00549382]
[1727744750219,0.02461056,63671.0,63669.0,0.004]
[1727744750374,0.02461056,63671.0,63669.0,0.157061]
[1727744750568,0.23646438,63675.0,63670.0,0.0054882]
[1727744750780,0.157072,63665.0,63664.0,0.007]
[1727744751205,0.315133,63668.0,63664.0,0.007]
[1727744751206,0.001,63668.0,63664.0,0.007]
[1727744751421,0.157068,63667.0,63664.0,0.1634578]
[1727744751835,0.001,63668.0,63664.0,0.1634578]
[1727744752075,0.157064,63669.0,63664.0,0.1564578]
[1727744752281,0.157064,63668.0,63664.0,0.1564578]
[1727744752907,0.157068,63667.0,63664.0,0.1564578]
[1727744753325,0.314129,63668.0,63662.0,0.157078]
[1727744753532,0.157071,63666.0,63664.0,0.007]
[1727744753745,0.157071,63666.0,63662.0,0.1564578]
[1727744753953,0.157071,63666.0,63664.0,0.008]
[1727744754164,0.001,63667.0,63664.0,0.008]
[1727744755005,0.02561229,63667.0,63664.0,0.008]
[1727744755211,0.02561229,63667.0,63664.0,0.165074]
[1727744755425,0.02461229,63667.0,63664.0,0.157074]
[1727744755869,0.001,63666.0,63664.0,0.166074]
[1727744756100,0.02461229,63667.0,63664.0,0.157074]
[1727744756324,0.18268029,63667.0,63664.0,0.008]
[1727744756762,0.18168029,63667.0,63665.0,0.00551285]
[1727744756965,0.18168029,63667.0,63664.0,0.005]
[1727744757164,0.02461229,63667.0,63665.0,0.00551285]
[1727744757365,0.02461229,63667.0,63666.0,0.157069]
[1727744757564,0.02461229,63667.0,63666.0,0.16258023]
[1727744758461,0.000823,63672.0,63671.0,0.157057]
[1727744758875,0.000823,63672.0,63671.0,0.31901866]
[1727744759962,0.000823,63672.0,63671.0,0.42894866]
[1727744760187,0.001823,63672.0,63671.0,0.43494866]
[1727744760419,0.000823,63672.0,63671.0,0.42894866]
[1727744761883,0.0264316,63672.0,63671.0,0.43794866]
[1727744762129,0.001823,63672.0,63671.0,0.43794866]
[1727744762391,0.001823,63672.0,63671.0,0.42894866]
[1727744762392,0.000823,63672.0,63671.0,0.42894866]
[1727744762664,0.000823,63672.0,63671.0,0.64534866]
[1727744762924,0.000823,63672.0,63671.0,0.65734866]
[1727744763186,0.001823,63672.0,63671.0,0.70357398]
[1727744763407,0.000823,63672.0,63671.0,0.69157398]
[1727744763612,0.001823,63672.0,63671.0,0.65434866]
[1727744763822,0.001823,63672.0,63671.0,0.66935875]
[1727744764890,0.001823,63672.0,63671.0,0.65434866]
[1727744765109,0.000823,63672.0,63671.0,0.64534866]
[1727744765315,0.001823,63672.0,63671.0,0.65934866]
[1727744765742,0.000823,63672.0,63671.0,0.64534866]
[1727744766127,0.000823,63672.0,63671.0,0.65934866]
[1727744766300,0.000823,63672.0,63671.0,0.64534866]
[1727744766704,0.000823,63672.0,63671.0,0.63634866]
[1727744768322,0.000823,63672.0,63671.0,0.65934866]
[1727744768982,0.000823,63672.0,63671.0,0.64534866]
[1727744769410,0.001823,63672.0,63671.0,0.65934866]
[1727744769687,0.000823,63672.0,63671.0,0.64534866]
[1727744769884,0.001823,63672.0,63671.0,0.65934866]
[1727744771483,0.23646438,63686.0,63673.0,0.03153]
[1727744771702,0.23646438,63686.0,63685.0,0.49961447]
[1727744772123,0.156994,63697.0,63691.0,0.157007]
[1727744772557,0.156996,63696.0,63692.0,0.00545237]
[1727744772768,0.156996,63696.0,63689.0,0.314023]
[1727744772769,0.156996,63696.0,63690.0,0.157008]
[1727744772975,0.02460603,63701.0,63697.0,0.156992]
[1727744773195,0.26107041,63701.0,63698.0,0.00544301]
[1727744773410,0.23646438,63701.0,63698.0,0.00544301]
[1727744773631,0.313953,63704.0,63697.0,0.0831]
[1727744773844,0.470961,63700.0,63699.0,0.00544145]
[1727744774053,0.470961,63700.0,63692.0,0.2395578]
[1727744774054,0.156988,63699.0,63698.0,0.00544301]
[1727744774261,0.156993,63698.0,63693.0,0.157002]
[1727744774467,0.156993,63698.0,63694.0,0.1564578]
[1727744774649,0.156994,63697.0,63694.0,0.1564578]
[1727744774938,0.15699,63698.0,63694.0,0.3134578]
[1727744775152,0.313968,63701.0,63694.0,0.1564578]
[1727744775367,0.15699,63698.0,63694.0,0.3134578]
[1727744775594,0.15699,63698.0,63694.0,0.1564578]
[1727744775829,0.15699,63698.0,63694.0,0.1614578]
[1727744776101,0.156976,63704.0,63697.0,0.313985]
[1727744776343,0.23646438,63706.0,63702.0,0.16419247]
[1727744776573,0.23646438,63706.0,63703.0,0.1564578]
[1727744777007,0.23646438,63706.0,63694.0,0.157998]
[1727744777008,0.156985,63701.0,63694.0,0.157998]
[1727744777231,0.156993,63698.0,63695.0,0.1564578]
[1727744777471,0.156995,63697.0,63695.0,0.1564578]
[1727744777685,0.000822,63707.0,63696.0,0.313989]
[1727744777901,0.23728638,63707.0,63697.0,0.3134488]
[1727744778122,0.23728638,63707.0,63697.0,0.1564578]
[1727744778329,0.23728638,63707.0,63699.0,0.156987]
[1727744778330,0.156974,63705.0,63699.0,0.156987]
[1727744778555,0.156976,63704.0,63697.0,0.1564578]
[1727744778811,0.156976,63704.0,63698.0,0.15699]
[1727744779018,0.156976,63704.0,63698.0,0.3134478]
[1727744779480,0.23728638,63707.0,63690.0,0.23646438]
[1727744779481,0.000822,63707.0,63706.0,0.233671]
[1727744779684,0.005822,63707.0,63706.0,0.3901288]
[1727744780336,0.005822,63707.0,63706.0,0.5111288]
[1727744780776,0.000822,63707.0,63706.0,0.5111288]
[1727744781197,0.000822,63707.0,63706.0,0.6426588]
[1727744781854,0.000822,63707.0,63706.0,0.6526588]
[1727744782033,0.000822,63707.0,63706.0,0.6426588]
[1727744782284,0.000822,63707.0,63706.0,0.6546588]
[1727744783921,0.000822,63707.0,63706.0,0.6566588]
[1727744784140,0.000822,63707.0,63706.0,0.6426588]
[1727744784360,0.23646438,63723.0,63722.0,0.236831]
[1727744784578,0.23646438,63723.0,63722.0,0.55748127]
[1727744785020,0.000822,63725.0,63722.0,0.55748127]
[1727744785021,0.000822,63725.0,63724.0,0.311456]
[1727744785246,0.000822,63725.0,63724.0,0.47105177]
[1727744785478,0.000822,63725.0,63724.0,0.5489138]
[1727744785691,0.23646438,63737.0,63734.0,0.47562447]
[1727744785918,0.23646438,63737.0,63734.0,0.80968227]
[1727744786386,0.00405,63738.0,63734.0,0.80968227]
[1727744786633,0.00405,63738.0,63734.0,0.81492856]
[1727744787322,0.00405,63738.0,63734.0,0.65073609]
[1727744787802,0.00405,63738.0,63734.0,0.66473609]
[1727744788012,0.00405,63738.0,63734.0,0.65073609]
[1727744788478,0.00405,63738.0,63734.0,0.66273609]
[1727744790011,0.00405,63738.0,63734.0,0.82692856]
[1727744791103,0.00405,63738.0,63734.0,0.81492856]
[1727744791538,0.00405,63738.0,63734.0,0.82792856]
[1727744791751,0.00405,63738.0,63734.0,0.81492856]
[1727744792209,0.00405,63738.0,63734.0,0.82792856]
[1727744793364,0.00405,63738.0,63734.0,0.81492856]
[1727744793800,0.00405,63738.0,63734.0,0.82792856]
[1727744794284,0.00405,63738.0,63734.0,1.17792856]
[1727744796016,0.000822,63742.0,63741.0,0.256884]
[1727744796239,0.000822,63742.0,63741.0,0.4133418]
[1727744796493,0.000822,63742.0,63741.0,0.41851265]
[1727744797443,0.000822,63742.0,63741.0,0.42351265]
[1727744797654,0.000822,63742.0,63741.0,0.41851265]
[1727744797867,0.000822,63742.0,63741.0,0.42351265]
[1727744798341,0.000822,63742.0,63741.0,0.01017085]
[1727744798855,0.000822,63742.0,63739.0,0.156889]
[1727744799113,0.000822,63742.0,63739.0,0.1564578]
[1727744799357,0.02540833,63742.0,63740.0,0.00517241]
[1727744799855,0.156884,63741.0,63740.0,0.00517241]
[1727744800401,0.156891,63739.0,63732.0,0.313811]
[1727744800637,0.156891,63739.0,63733.0,0.3133618]
[1727744800903,0.313774,63740.0,63733.0,0.3133618]
[1727744801143,0.000822,63742.0,63733.0,0.1564578]
[1727744801380,0.000822,63742.0,63741.0,0.156884]
[1727744801881,0.000822,63742.0,63741.0,0.16206178]
[1727744802124,0.000822,63742.0,63741.0,0.00517778]
[1727744802635,0.000822,63742.0,63741.0,0.16207761]
[1727744802882,0.000822,63742.0,63741.0,0.156884]
[1727744803124,0.000822,63742.0,63741.0,0.31853541]
[1727744803380,0.02540807,63742.0,63741.0,0.31853541]
[1727744804342,0.02540807,63742.0,63741.0,0.56232788]
[1727744805202,0.02540807,63742.0,63741.0,0.39813541]
[1727744805819,0.02540807,63742.0,63741.0,0.40213541]
[1727744806029,0.02540807,63742.0,63741.0,0.39813541]
[1727744806228,0.02540807,63742.0,63741.0,0.40513541]
[1727744807091,0.02540807,63742.0,63741.0,0.46799041]
[1727744807333,0.02540807,63742.0,63741.0,0.32553541]
[1727744808860,0.000822,63742.0,63741.0,0.32553541]
[1727744811299,0.000822,63742.0,63741.0,0.34349906]
[1727744811720,0.000822,63742.0,63741.0,0.34349885]
[1727744814992,0.000822,63742.0,63741.0,0.32553541]
[1727744815429,0.000822,63742.0,63741.0,0.34364536]
[1727744815641,0.000822,63742.0,63741.0,0.34364584]
[1727744816126,0.000822,63742.0,63741.0,0.34361337]
[1727744818054,0.02458437,63746.0,63745.0,0.156875]
[1727744818517,0.02458437,63746.0,63745.0,0.1620512]
[1727744818721,0.156857,63753.0,63749.0,0.156863]
[1727744818937,0.156856,63753.0,63749.0,0.156863]
[1727744819155,0.156856,63753.0,63750.0,0.00516841]
[1727744819361,0.313693,63757.0,63750.0,0.00516841]
[1727744819362,0.313699,63756.0,63750.0,0.00516841]
[1727744819573,0.0075,63759.0,63750.0,0.00516841]
[1727744819574,0.15686,63751.0,63750.0,0.00516841]
[1727744819817,0.002,63757.0,63744.0,0.23646438]
[1727744820043,0.15686,63751.0,63746.0,0.156871]
[1727744820515,0.156863,63750.0,63746.0,0.156871]
[1727744821405,0.156866,63749.0,63745.0,0.156873]
[1727744821624,0.002,63758.0,63744.0,0.313754]
[1727744821840,0.156858,63752.0,63750.0,0.001]
[1727744822022,0.02458408,63749.0,63748.0,0.156866]
[1727744822845,0.02458408,63749.0,63745.0,0.47062]
[1727744823069,0.02458408,63749.0,63746.0,0.156871]
[1727744823638,0.02458408,63749.0,63747.0,0.156867]
[1727744823816,0.02458408,63749.0,63746.0,0.156871]
[1727744824347,0.156868,63748.0,63744.0,0.3133338]
[1727744824578,0.02458408,63749.0,63742.0,0.039178]
[1727744824792,0.02458408,63749.0,63742.0,0.040822]
[1727744824793,0.156879,63743.0,63742.0,0.040822]
[1727744826656,0.156879,63743.0,63742.0,0.041822]
[1727744827508,0.26677655,63749.0,63748.0,0.156867]
[1727744827509,0.02458408,63749.0,63748.0,0.156867]
[1727744827720,0.02458408,63749.0,63742.0,0.20601447]
[1727744827721,0.18145008,63749.0,63742.0,0.20601447]
[1727744827935,0.156866,63749.0,63748.0,0.0051673]
[1727744828163,0.156866,63749.0,63744.0,0.156876]
[1727744828164,0.156865,63749.0,63745.0,0.156874]
[1727744828370,0.15687,63747.0,63742.0,0.041822]
[1727744828588,0.15687,63747.0,63746.0,0.00517041]
[1727744828817,0.156879,63743.0,63742.0,0.040822]
[1727744829028,0.156879,63743.0,63742.0,0.04599864]
[1727744829476,0.156879,63743.0,63742.0,0.040822]
[1727744829891,0.156879,63743.0,63742.0,0.04599864]
[1727744829892,0.160879,63743.0,63742.0,0.04599864]
[1727744831126,0.18546582,63743.0,63742.0,0.04599864]
[1727744831564,0.2667609,63743.0,63742.0,0.04599864]
[1727744831758,0.18546582,63743.0,63742.0,0.04599864]
[1727744831968,0.160879,63743.0,63742.0,0.04599864]
[1727744832174,0.156879,63743.0,63742.0,0.04599864]
[1727744832607,0.158879,63743.0,63742.0,0.04599864]
[1727744832814,0.158879,63743.0,63742.0,0.040822]
[1727744832963,0.158879,63743.0,63742.0,0.04599864]
[1727744833785,0.002,63743.0,63742.0,0.20288064]
[1727744834194,0.002,63743.0,63742.0,0.35933844]
[1727744835017,0.02658509,63743.0,63742.0,0.35933844]
[1727744838441,0.02658509,63743.0,63742.0,0.60383091]
[1727744838638,0.02658509,63743.0,63742.0,0.69733091]
[1727744838953,0.002,63743.0,63742.0,0.69733091]
[1727744839275,0.000822,63750.0,63742.0,0.54044891]
[1727744839487,0.000822,63750.0,63749.0,0.156865]
[1727744839733,0.31373,63749.0,63742.0,0.04599864]
[1727744839949,0.15687,63747.0,63742.0,0.04599864]
[1727744840181,0.000822,63750.0,63742.0,0.04599864]
[1727744840432,0.000822,63750.0,63742.0,0.35975864]
[1727744840647,0.156868,63748.0,63744.0,0.156875]
[1727744840863,0.156871,63747.0,63745.0,0.00517067]
[1727744841093,0.156871,63747.0,63742.0,0.197703]
[1727744841314,0.471411,63750.0,63746.0,0.00516912]
[1727744841537,0.471411,63750.0,63743.0,0.313758]
[1727744841538,0.156868,63748.0,63743.0,0.156879]
[1727744841749,0.156868,63748.0,63747.0,0.00516756]
[1727744841965,0.18145505,63747.0,63742.0,0.197703]
[1727744842187,0.02458505,63747.0,63743.0,0.1564578]
[1727744842398,0.02458505,63747.0,63746.0,0.156872]
[1727744842399,0.02658505,63747.0,63746.0,0.156872]
[1727744842617,0.02658505,63747.0,63742.0,0.040822]
[1727744842618,0.02458505,63747.0,63742.0,0.354583]
[1727744842834,0.18145505,63747.0,63742.0,0.197703]
[1727744843046,0.15687,63747.0,63742.0,0.197703]
[1727744843257,0.15687,63747.0,63742.0,0.040822]
[1727744843482,0.15687,63747.0,63743.0,0.156878]
[1727744843713,0.002,63748.0,63742.0,0.354584]
[1727744843947,0.002,63748.0,63745.0,0.156873]
[1727744844441,0.002,63748.0,63744.0,0.156876]
[1727744844684,0.002,63747.0,63744.0,0.156876]
[1727744844969,0.157684,63750.0,63745.0,0.156873]
[1727744845252,0.002,63748.0,63745.0,0.156873]
[1727744845452,0.156871,63747.0,63742.0,0.197702]
[1727744845685,0.004,63748.0,63745.0,0.156875]
[1727744845924,0.004,63748.0,63747.0,0.15687]
[1727744846158,0.000822,63750.0,63746.0,0.313745]
[1727744846159,0.157684,63750.0,63746.0,0.156872]
[1727744846370,0.159684,63750.0,63746.0,0.156872]
[1727744846639,0.156866,63749.0,63744.0,0.156876]
[1727744846859,0.156866,63749.0,63747.0,0.00516756]
[1727744847074,0.28380438,63748.0,63742.0,0.040822]
[1727744847326,0.156876,63745.0,63742.0,0.040822]
[1727744847974,0.33831911,63749.0,63742.0,0.040822]
[1727744847975,0.156877,63744.0,63742.0,0.040822]
[1727744848197,0.313751,63745.0,63742.0,0.040822]
[1727744848600,0.156879,63744.0,63742.0,0.040822]
[1727744848809,0.313741,63747.0,63742.0,0.040822]
[1727744849039,0.156879,63743.0,63742.0,0.040822]
[1727744849279,0.156879,63743.0,63742.0,0.041822]
[1727744849546,0.156879,63743.0,63742.0,0.040822]
[1727744851358,0.156879,63743.0,63742.0,0.042822]
[1727744851679,0.156879,63743.0,63742.0,0.040822]
[1727744852149,0.158879,63743.0,63742.0,0.040822]
[1727744852921,0.18346677,63743.0,63742.0,0.040822]
[1727744853184,0.160879,63743.0,63742.0,0.040822]
[1727744853435,0.158879,63743.0,63742.0,0.040822]
[1727744856123,0.18346662,63743.0,63742.0,0.040822]
[1727744856385,0.18546662,63743.0,63742.0,0.040822]
[1727744856627,0.18346662,63743.0,63742.0,0.040822]
[1727744858313,0.02658762,63743.0,63742.0,0.040822]
[1727744858530,0.002,63743.0,63742.0,0.040822]
[1727744858762,0.002,63743.0,63742.0,0.04602078]
[1727744859190,0.157698,63745.0,63742.0,0.04602078]
[1727744859416,0.000823,63745.0,63742.0,0.04602078]
[1727744859633,0.002,63743.0,63742.0,0.20290278]
[1727744859849,0.000823,63745.0,63742.0,0.04602078]
[1727744860059,0.156879,63743.0,63742.0,0.04602078]
[1727744860283,0.158879,63743.0,63742.0,0.04602078]
[1727744860499,0.156879,63743.0,63742.0,0.04602078]
[1727744860710,0.156879,63743.0,63742.0,0.040822]
[1727744860926,0.156879,63743.0,63742.0,0.04601582]
[1727744861845,0.18146603,63743.0,63742.0,0.040822]
[1727744862479,0.18346603,63743.0,63742.0,0.040822]
[1727744862924,0.158879,63743.0,63742.0,0.040822]
[1727744863150,0.156879,63743.0,63742.0,0.040822]
[1727744863577,0.158879,63743.0,63742.0,0.040822]
[1727744866238,0.18346651,63743.0,63742.0,0.040822]
[1727744868408,0.158879,63743.0,63742.0,0.040822]
[1727744871403,0.160879,63743.0,63742.0,0.040822]
[1727744871629,0.18346664,63743.0,63742.0,0.040822]
[1727744872706,0.18546664,63743.0,63742.0,0.040822]
[1727744873139,0.18346664,63743.0,63742.0,0.040822]
[1727744873792,0.18546664,63743.0,63742.0,0.040822]
[1727744874000,0.18346664,63743.0,63742.0,0.040822]
[1727744875350,0.18428964,63743.0,63742.0,0.040822]
[1727744878799,0.18628964,63743.0,63742.0,0.040822]
[1727744880184,0.18428964,63743.0,63742.0,0.040822]
[1727744880429,0.4307084,63743.0,63742.0,0.040822]
[1727744880678,0.4407084,63743.0,63742.0,0.040822]
[1727744880971,0.4407084,63743.0,63730.0,0.0495713]
[1727744880972,0.0952,63731.0,63730.0,0.0495713]
[1727744881347,0.0952,63731.0,63725.0,0.001644]
[1727744881348,0.43811347,63726.0,63725.0,0.001644]
[1727744882203,0.66509606,63726.0,63725.0,0.001644]
[1727744882428,0.59457127,63726.0,63725.0,0.001644]
[1727744883632,0.59457127,63726.0,63707.0,0.23855438]
[1727744883633,0.156966,63708.0,63707.0,0.23855438]
[1727744883872,0.32115847,63708.0,63707.0,0.23855438]
[1727744884071,0.61110762,63708.0,63707.0,0.00209]
[1727744884283,0.62110762,63708.0,63707.0,0.00209]
[1727744884484,0.61910762,63708.0,63707.0,0.00209]
[1727744884698,0.313917,63711.0,63708.0,0.0822]
[1727744884917,0.156963,63709.0,63708.0,0.0822]
[1727744886365,0.156963,63709.0,63708.0,0.1746]
[1727744886564,0.164963,63709.0,63708.0,0.1746]
[1727744886767,0.164963,63709.0,63708.0,0.17990008]
[1727744887389,0.1895628,63709.0,63708.0,0.17990008]
[1727744887703,0.164963,63709.0,63708.0,0.18154608]
[1727744888908,0.18649522,63709.0,63708.0,0.18154608]
[1727744889289,0.19349522,63709.0,63708.0,0.18154608]
[1727744889860,0.163963,63709.0,63708.0,0.18154608]
[1727744890277,0.163963,63709.0,63708.0,0.00694608]
[1727744890278,0.33315547,63709.0,63708.0,0.00694608]
[1727744890477,0.33315547,63709.0,63708.0,0.001646]
[1727744890881,0.163963,63709.0,63708.0,0.001646]
[1727744892549,0.156963,63709.0,63708.0,0.001646]
[1727744892763,0.170963,63709.0,63708.0,0.001646]
[1727744893226,0.156963,63709.0,63708.0,0.001646]
[1727744893437,0.164963,63709.0,63708.0,0.001646]
[1727744893664,0.164963,63709.0,63708.0,0.00698959]
[1727744893873,0.02459987,63710.0,63708.0,0.00698959]
[1727744893874,0.18156187,63710.0,63708.0,0.001646]
[1727744894086,0.156963,63709.0,63708.0,0.001646]
[1727744895148,0.164963,63709.0,63708.0,0.001646]
[1727744895355,0.156963,63709.0,63708.0,0.001646]
[1727744895764,0.162963,63709.0,63708.0,0.001646]
[1727744896370,0.168963,63709.0,63708.0,0.001646]
[1727744896630,0.156963,63709.0,63708.0,0.001646]
[1727744896850,0.161963,63709.0,63708.0,0.001646]
[1727744898984,0.24390169,63709.0,63708.0,0.001646]
[1727744899194,0.161963,63709.0,63708.0,0.001646]
[1727744900986,0.005,63709.0,63708.0,0.001646]
[1727744901449,0.005,63709.0,63708.0,0.50240715]
[1727744901663,0.0490484,63720.0,63708.0,0.50240715]
[1727744901664,0.23646438,63716.0,63715.0,0.156948]
[1727744901879,0.23646438,63716.0,63715.0,0.65959827]
[1727744902094,0.23646438,63716.0,63715.0,0.4954058]
[1727744902321,0.23646438,63716.0,63715.0,0.18732698]
[1727744902524,0.156938,63720.0,63715.0,0.18732698]
[1727744902742,0.156946,63716.0,63715.0,0.182]
[1727744903162,0.157946,63716.0,63715.0,0.182]
[1727744903599,0.156946,63716.0,63715.0,0.182]
[1727744904264,0.313911,63713.0,63709.0,0.0828]
[1727744904478,0.15696,63711.0,63709.0,0.0828]
[1727744904690,0.156957,63712.0,63709.0,0.0828]
[1727744904951,0.313901,63715.0,63709.0,0.0828]
[1727744904952,0.02459755,63713.0,63709.0,0.0828]
[1727744905162,0.156956,63712.0,63709.0,0.0828]
[1727744905377,0.18155155,63713.0,63709.0,0.0828]
[1727744905585,0.156958,63711.0,63709.0,0.0828]
[1727744906005,0.156958,63711.0,63709.0,0.0848]
[1727744906645,0.156958,63711.0,63709.0,0.0828]
[1727744906860,0.156958,63711.0,63710.0,0.00532007]
[1727744907739,0.156955,63713.0,63710.0,0.00532007]
[1727744907946,0.156945,63717.0,63710.0,0.16177787]
[1727744908162,0.156945,63717.0,63711.0,0.313916]
[1727744908366,0.156947,63716.0,63710.0,0.16177787]
[1727744908598,0.156947,63716.0,63712.0,0.16227575]
[1727744908847,0.02459641,63715.0,63711.0,0.16228131]
[1727744909066,0.02459641,63715.0,63713.0,0.00532019]
[1727744909274,0.02459641,63715.0,63712.0,0.00532175]
[1727744909481,0.156952,63714.0,63712.0,0.00532175]
[1727744909911,0.156952,63714.0,63710.0,0.1564578]
[1727744910145,0.18154541,63715.0,63713.0,0.00532019]
[1727744910356,0.18154541,63715.0,63711.0,0.156957]
[1727744910572,0.18154541,63715.0,63714.0,0.00531863]
[1727744910796,0.02459641,63715.0,63711.0,0.313914]
[1727744911044,0.02459641,63715.0,63714.0,0.00531863]
[1727744911266,0.02459641,63715.0,63710.0,0.1564578]
[1727744911267,0.313903,63714.0,63710.0,0.1564578]
[1727744911479,0.156961,63710.0,63709.0,0.0828]
[1727744912552,0.156961,63710.0,63708.0,0.001646]
[1727744912553,0.156963,63709.0,63708.0,0.001646]
[1727744912981,0.2668329,63709.0,63708.0,0.001646]
[1727744913190,0.156963,63709.0,63708.0,0.001646]
[1727744914119,0.156961,63710.0,63708.0,0.001646]
[1727744914336,0.156959,63711.0,63708.0,0.001646]
[1727744914759,0.313894,63716.0,63709.0,0.1777]
[1727744914988,0.049089,63721.0,63709.0,0.334663]
[1727744914989,0.156953,63714.0,63709.0,0.334663]
[1727744915290,0.156954,63713.0,63709.0,0.334663]
[1727744915511,0.156954,63713.0,63708.0,0.002646]
[1727744915512,0.156963,63709.0,63708.0,0.002646]
[1727744915939,0.156963,63709.0,63708.0,0.001646]
[1727744916798,0.156963,63709.0,63708.0,0.002646]
[1727744917010,0.156963,63709.0,63708.0,0.001646]
[1727744918074,0.28345145,63709.0,63708.0,0.001646]
[1727744918280,0.28345145,63709.0,63708.0,0.002646]
[1727744918698,0.156963,63709.0,63708.0,0.001646]
[1727744919119,0.156963,63709.0,63708.0,0.002646]
[1727744919548,0.156963,63709.0,63708.0,0.001646]
[1727744920012,0.66321327,63709.0,63708.0,0.001646]
[1727744920266,0.77321327,63709.0,63708.0,0.002646]
[1727744920484,0.92966005,63709.0,63708.0,0.002646]
[1727744922016,0.92966005,63709.0,63708.0,0.001646]
[1727744922232,0.93266005,63709.0,63708.0,0.001646]
[1727744922446,0.92966005,63709.0,63708.0,0.001646]
[1727744922666,0.99992881,63709.0,63708.0,0.001646]
[1727744922904,1.01392881,63709.0,63708.0,0.001646]
[1727744923115,0.92966005,63709.0,63708.0,0.001646]
[1727744923325,0.94366005,63709.0,63708.0,0.001646]
[1727744923738,0.96826411,63709.0,63708.0,0.001646]
[1727744923983,1.03878851,63709.0,63708.0,0.001646]
[1727744924414,0.96826411,63709.0,63708.0,0.001646]
[1727744924618,1.0619558,63709.0,63708.0,0.001646]
[1727744925309,0.96826411,63709.0,63708.0,0.001646]
[1727744925740,1.08537872,63709.0,63708.0,0.001646]
[1727744925956,1.08620172,63709.0,63708.0,0.001646]
[1727744926425,0.96908711,63709.0,63708.0,0.001646]
[1727744927290,1.06317766,63709.0,63708.0,0.001646]
[1727744927709,0.96908711,63709.0,63708.0,0.001646]
[1727744928354,1.06316883,63709.0,63708.0,0.001646]
[1727744928560,0.96546883,63709.0,63708.0,0.001646]
[1727744929006,0.72612205,63709.0,63708.0,0.001646]
[1727744929220,0.68859223,63709.0,63708.0,0.001646]
[1727744929435,0.70259223,63709.0,63708.0,0.001646]
[1727744929661,0.20139006,63709.0,63708.0,0.001646]
[1727744929875,0.176786,63709.0,63708.0,0.001646]
[1727744930083,0.178786,63709.0,63708.0,0.001646]
[1727744930305,0.32123278,63709.0,63708.0,0.001646]
[1727744931545,0.33523278,63709.0,63708.0,0.001646]
[1727744931724,0.32123278,63709.0,63708.0,0.001646]
[1727744932137,0.33323278,63709.0,63708.0,0.001646]
[1727744932737,0.3578353,63709.0,63708.0,0.001646]
[1727744932962,0.33323278,63709.0,63708.0,0.001646]
[1727744933896,0.174786,63709.0,63708.0,0.001646]
[1727744937342,0.169786,63709.0,63708.0,0.001646]
[1727744938379,0.169786,63709.0,63708.0,0.18860285]
[1727744938380,0.012823,63709.0,63708.0,0.18860285]
[1727744938622,0.169786,63709.0,63708.0,0.18860285]
[1727744938833,0.157786,63709.0,63708.0,0.18860285]
[1727744939270,0.159786,63709.0,63708.0,0.18860285]
[1727744939496,0.1843856,63709.0,63708.0,0.18860285]
[1727744939706,0.0274226,63709.0,63708.0,0.18860285]
[1727744939916,0.0284226,63709.0,63708.0,0.18860285]
[1727744940805,0.1853856,63709.0,63708.0,0.18860285]
[1727744941715,0.0284226,63709.0,63708.0,0.18860285]
[1727744941971,0.1853856,63709.0,63708.0,0.18860285]
[1727744944989,0.160786,63709.0,63708.0,0.18860285]
[1727744945403,0.003823,63709.0,63708.0,0.18860285]
[1727744945620,0.160786,63709.0,63708.0,0.18860285]
[1727744946509,0.003823,63709.0,63708.0,0.18860285]
[1727744946724,0.160786,63709.0,63708.0,0.18860285]
[1727744946931,0.160786,63709.0,63708.0,0.183246]
[1727744947191,0.003823,63709.0,63708.0,0.18857798]
[1727744947418,0.003823,63709.0,63708.0,0.50200178]
[1727744948297,0.02541984,63709.0,63708.0,0.50200178]
[1727744948499,0.000823,63709.0,63708.0,0.50400178]
[1727744948706,0.001823,63709.0,63708.0,0.50400178]
[1727744948918,0.001823,63709.0,63708.0,0.50200178]
[1727744949129,0.002823,63709.0,63708.0,0.50400178]
[1727744949346,0.001823,63709.0,63708.0,0.50200178]
[1727744949789,0.002823,63709.0,63708.0,0.50400178]
[1727744951240,0.000823,63709.0,63708.0,0.50200178]
[1727744951448,0.157786,63709.0,63708.0,0.18857798]
[1727744951658,0.158786,63709.0,63708.0,0.19057798]
[1727744951873,0.158786,63709.0,63708.0,0.08877798]
[1727744952090,0.158786,63709.0,63708.0,0.001646]
[1727744952302,0.32297847,63709.0,63708.0,0.001646]
[1727744952706,0.32397847,63709.0,63708.0,0.003646]
[1727744952905,0.32197847,63709.0,63708.0,0.001646]
[1727744953359,0.44460545,63709.0,63708.0,0.001646]
[1727744953561,0.32597847,63709.0,63708.0,0.001646]
[1727744953978,0.161786,63709.0,63708.0,0.001646]
[1727744955114,0.157786,63709.0,63708.0,0.001646]
[1727744955315,0.163786,63709.0,63708.0,0.001646]
[1727744955575,0.157786,63709.0,63708.0,0.001646]
[1727744956055,0.18638717,63709.0,63708.0,0.001646]
[1727744956312,0.18238717,63709.0,63708.0,0.001646]
[1727744956544,0.4515203,63709.0,63708.0,0.001646]
[1727744958052,0.34657964,63709.0,63708.0,0.001646]
[1727744958255,0.35057964,63709.0,63708.0,0.001646]